[Event "21st Sants Open 2019"]
[Site "Cotxeres de Sants"]
[Date "2019.09.01"]
[Round "10.11"]
[White "Haast, Mark"]
[Black "Valenzuela Gomez, Fernando"]
[Result "1/2-1/2"]
[ECO "A20"]
[WhiteElo "2413"]
[BlackElo "2388"]
[Annotator "NA"]
[PlyCount "44"]
[EventDate "2019.08.22"]
[EventType "swiss"]
[EventCountry "ESP"]
[SourceTitle "playchess.com"]
[Source "ChessBase"]
[SourceQuality "1"]
[TimeControl "40/5400+30:1800+30"]

1. c4 {[%emt 0:04:45]} e5 {[%emt 0:00:03]} 2. g3 {[%emt 0:00:10]} h5 {[%emt 0:00:05]} 3. d4 {[%emt 0:06:58]} exd4 {[%emt 0:00:10]} 4. Nf3 {[%emt 0:01:34]} h4 {[%emt 0:15:21]} 5. gxh4 {[%emt 0:08:02]} Nc6 {[%emt 0:04:57]} 6. Bg5 {[%emt 0:02:16]} Bb4+ {[%emt 0:03:39]} 7. Nbd2 {[%emt 0:00:39]} Be7 {[%emt 0:05:00]} 8. Nb3 {[%emt 0:03:24]} Nf6 {[%emt 0:02:58]} 9. a3 {[%emt 0:09:43]} d5 {[%emt 0:13:16]} 10. Nbxd4 {[%emt 0:01:37]} Nxd4 {[%emt 0:01:06]} 11. Qxd4 {[%emt 0:00:34]} c5 {[%emt 0:00:51]} 12. Qe5 {[%emt 0:01:44]} dxc4 {[%emt 0:00:31]} 13. Bxf6 {[%emt 0:02:36]} gxf6 {[%emt 0:00:28]} 14. Qc3 {[%emt 0:00:07]} Be6 {[%emt 0:04:36]} 15. Rg1 {[%emt 0:00:41]} Qc7 {[%emt 0:04:45]} 16. Rd1 {[%emt 0:03:46]} Rd8 {[%emt 0:02:38]} 17. Rxd8+ {[%emt 0:00:13]} Kxd8 {[%emt 0:04:24]} 18. Rg3 {[%emt 0:10:08]} Qd7 {[%emt 0:07:34]} 19. Ng5 {[%emt 0:03:37]} Rxh4 {[%emt 0:03:32]} 20. Nxe6+ {[%emt 0:00:10]} Qxe6 {[%emt 0:02:01]} 21. Rg8+ {[%emt 0:09:11]} Kd7 {[%emt 0:00:22]} 22. Qf3 {[%emt 0:01:43]} Qe4 {[%emt 0:03:04]} 1/2-1/2

[Event "21st Sants Open 2019"]
[Site "Cotxeres de Sants"]
[Date "2019.09.01"]
[Round "10.12"]
[White "Santos Latasa, Jaime"]
[Black "Sanchez, Sebastian Felipe"]
[Result "1-0"]
[ECO "C18"]
[WhiteElo "2586"]
[BlackElo "2405"]
[Annotator "RC"]
[PlyCount "67"]
[EventDate "2019.08.22"]
[EventType "swiss"]
[EventCountry "ESP"]
[SourceTitle "playchess.com"]
[Source "ChessBase"]
[SourceQuality "1"]
[TimeControl "40/5400+30:1800+30"]

1. e4 {[%emt 0:00:00]} e6 {[%emt 0:06:16]} 2. d4 {[%emt 0:00:00]} d5 {[%emt 0:00:03]} 3. Nc3 {[%emt 0:00:00]} Bb4 {[%emt 0:03:12]} 4. e5 {[%emt 0:00:00]} c5 {[%emt 0:00:04]} 5. a3 {[%emt 0:00:00]} Bxc3+ {[%emt 0:00:04]} 6. bxc3 {[%emt 0:00:04]} Ne7 {[%emt 0:00:02]} 7. Qg4 {[%emt 0:00:14]} O-O {[%emt 0:00:05]} 8. Bd3 {[%emt 0:00:08]} Nbc6 {[%emt 0:00:11]} 9. Bg5 {[%emt 0:00:27]} Qa5 {[%emt 0:00:06]} 10. Ne2 {[%emt 0:00:05]} Ng6 {[%emt 0:00:04]} 11. h4 {[%emt 0:20:25]} Nxd4 {[%emt 0:05:32]} 12. Qg3 {[%emt 0:00:31]} Nxe5 {[%emt 0:11:49]} 13. Qxe5 {[%emt 0:01:56]} f6 {[%emt 0:00:16]} 14. Qd6 {[%emt 0:08:44]} Nxe2 {[%emt 0:01:37]} 15. Kxe2 {[%emt 0:00:49]} Qd8 {[%emt 0:06:29]} 16. Qxc5 {[%emt 0:02:28]} fxg5 {[%emt 0:00:18]} 17. hxg5 {[%emt 0:00:11]} g6 {[%emt 0:00:35]} 18. Rh6 {[%emt 0:10:08]} Qxg5 {[%emt 0:06:23]} 19. Rah1 {[%emt 0:01:05]} Qe5+ {[%emt 0:01:44]} 20. Kd1 {[%emt 0:00:35]} Rf7 {[%emt 0:01:22]} 21. Bxg6 {[%emt 0:00:31]} hxg6 {[%emt 0:00:06]} 22. Rxg6+ {[%emt 0:00:04]} Rg7 {[%emt 0:00:11]} 23. Qe7 {[%emt 0:00:05]} Bd7 {[%emt 0:03:01]} 24. Qxd7 {[%emt 0:00:10]} Rxg6 {[%emt 0:00:18]} 25. Qh7+ {[%emt 0:00:09]} Kf8 {[%emt 0:00:03]} 26. Qxg6 {[%emt 0:00:06]} Ke7 {[%emt 0:06:37]} 27. Rh7+ {[%emt 0:00:12]} Kd6 {[%emt 0:00:45]} 28. Qf7 {[%emt 0:00:05]} Kc5 {[%emt 0:03:10]} 29. Qxb7 {[%emt 0:00:28]} Qb8 {[%emt 0:00:08]} 30. Rc7+ {[%emt 0:00:43]} Kd6 {[%emt 0:00:06]} 31. Rc6+ {[%emt 0:00:03]} Ke5 {[%emt 0:00:08]} 32. Qg7+ {[%emt 0:00:05]} Kf5 {[%emt 0:00:22]} 33. Qf7+ {[%emt 0:00:24]} Kg5 {[%emt 0:00:08]} 34. Rxe6 {[%emt 0:00:07]} 1-0

[Event "21st Sants Open 2019"]
[Site "Cotxeres de Sants"]
[Date "2019.09.01"]
[Round "10.13"]
[White "Sosa, Tomas"]
[Black "Nogerbek, Kazybek"]
[Result "1-0"]
[ECO "C03"]
[WhiteElo "2508"]
[BlackElo "2375"]
[Annotator "ChessBase"]
[PlyCount "57"]
[EventDate "2019.08.22"]
[EventType "swiss"]
[EventCountry "ESP"]
[SourceTitle "playchess.com"]
[Source "ChessBase"]
[SourceQuality "1"]
[TimeControl "40/5400+30:1800+30"]

1. e4 {[%emt 0:09:33]} e6 {[%emt 0:00:00]} 2. d4 {[%emt 0:00:06]} d5 {[%emt 0:00:00]} 3. Nd2 {[%emt 0:00:06]} Be7 {[%emt 0:00:00]} 4. e5 {[%emt 0:00:34]} c5 {[%emt 0:00:03]} 5. dxc5 {[%emt 0:00:04]} Nc6 {[%emt 0:00:56]} 6. Ngf3 {[%emt 0:00:44]} Qc7 {[%emt 0:02:22]} 7. Bb5 {[%emt 0:00:51]} Bxc5 {[%emt 0:00:46]} 8. O-O {[%emt 0:09:02]} a6 {[%emt 0:03:28]} 9. Bxc6+ {[%emt 0:01:43]} bxc6 {[%emt 0:01:03]} 10. c4 {[%emt 0:07:44]} a5 {[%emt 0:03:36]} 11. Nb3 {[%emt 0:03:27]} Ba7 {[%emt 0:02:02]} 12. cxd5 {[%emt 0:00:06]} cxd5 {[%emt 0:00:47]} 13. Bd2 {[%emt 0:03:11]} Bb6 {[%emt 0:02:49]} 14. Rc1 {[%emt 0:13:18]} Qa7 {[%emt 0:02:27]} 15. Nbd4 {[%emt 0:00:01]} Ba6 {[%emt 0:05:08]} 16. Re1 {[%emt 0:03:19]} Qd7 {[%emt 0:09:38]} 17. Rc6 {[%emt 0:05:45]} Bc7 {[%emt 0:08:30]} 18. Bxa5 {[%emt 0:07:34]} Bxa5 {[%emt 0:05:35]} 19. Rd6 {[%emt 0:00:06]} Nf6 {[%emt 0:06:02]} 20. Rxd7 {[%emt 0:00:48]} Nxd7 {[%emt 0:00:08]} 21. Re3 {[%emt 0:03:00]} O-O {[%emt 0:06:10]} 22. Qa4 {[%emt 0:03:03]} Bc8 {[%emt 0:02:52]} 23. b4 {[%emt 0:01:04]} Nb6 {[%emt 0:00:11]} 24. Qb3 {[%emt 0:00:05]} Nc4 {[%emt 0:00:39]} 25. bxa5 {[%emt 0:00:05]} Nxe3 {[%emt 0:00:06]} 26. fxe3 {[%emt 0:01:54]} Rxa5 {[%emt 0:00:06]} 27. Nc6 {[%emt 0:00:22]} Rc5 {[%emt 0:00:19]} 28. Ne7+ {[%emt 0:01:56]} Kh8 {[%emt 0:00:06]} 29. Qa3 {[%emt 0:00:03]} 1-0

[Event "21st Sants Open 2019"]
[Site "Cotxeres de Sants"]
[Date "2019.09.01"]
[Round "10.14"]
[White "Garriga Cazorla, Pere"]
[Black "Domingo Nunez, Ruben"]
[Result "1-0"]
[ECO "E32"]
[WhiteElo "2495"]
[BlackElo "2347"]
[Annotator "ChessBase"]
[PlyCount "87"]
[EventDate "2019.08.22"]
[EventType "swiss"]
[EventCountry "ESP"]
[SourceTitle "playchess.com"]
[Source "ChessBase"]
[SourceQuality "1"]
[TimeControl "40/5400+30:1800+30"]

1. d4 {[%emt 0:13:15]} Nf6 {[%emt 0:00:16]} 2. c4 {[%emt 0:00:07]} e6 {[%emt 0:00:37]} 3. Nc3 {[%emt 0:00:04]} Bb4 {[%emt 0:00:09]} 4. Qc2 {[%emt 0:00:05]} d6 {[%emt 0:00:04]} 5. Nf3 {[%emt 0:00:15]} Nbd7 {[%emt 0:02:14]} 6. Bd2 {[%emt 0:00:09]} O-O {[%emt 0:01:34]} 7. a3 {[%emt 0:00:09]} Bxc3 {[%emt 0:00:07]} 8. Bxc3 {[%emt 0:00:05]} Qe7 {[%emt 0:02:07]} 9. e3 {[%emt 0:00:35]} b6 10. Be2 {[%emt 0:01:37]} Bb7 {[%emt 0:13:45]} 11. b4 {[%emt 0:02:48]} Ne4 {[%emt 0:17:09]} 12. Bb2 {[%emt 0:07:07]} f5 {[%emt 0:04:56]} 13. Rd1 Ng5 14. d5 {[%emt 0:08:07]} Nxf3+ {[%emt 0:12:01]} 15. Bxf3 {[%emt 0:01:04]} e5 {[%emt 0:04:09]} 16. Be2 Qg5 {[%emt 0:05:25]} 17. O-O {[%emt 0:05:57]} c5 18. f4 Qh6 {[%emt 0:13:18]} 19. Kh1 {[%emt 0:04:18]} Nf6 {[%emt 0:07:38]} 20. bxc5 {[%emt 0:01:21]} bxc5 {[%emt 0:02:39]} 21. fxe5 {[%emt 0:01:00]} Ne4 {[%emt 0:01:57]} 22. Rf3 {[%emt 0:00:53]} dxe5 {[%emt 0:00:14]} 23. Bxe5 {[%emt 0:02:06]} Rae8 {[%emt 0:01:43]} 24. Qb2 Rf7 {[%emt 0:02:12]} 25. Rdf1 {[%emt 0:02:42]} Bc8 26. Bd3 {[%emt 0:05:08]} Rb7 {[%emt 0:03:01]} 27. Qa1 {[%emt 0:01:05]} Nd2 {[%emt 0:05:41]} 28. Rh3 Qa6 {[%emt 0:00:02]} 29. Rd1 {[%emt 0:05:08]} Rb3 {[%emt 0:00:58]} 30. Rg3 g6 31. Bh8 Re7 32. Rxd2 {[%emt 0:04:09]} Rxa3 {[%emt 0:01:31]} 33. Qb2 {[%emt 0:00:05]} f4 {[%emt 0:00:29]} 34. Rf3 {[%emt 0:00:04]} Rxd3 {[%emt 0:00:32]} 35. Rxd3 {[%emt 0:00:57]} Rb7 {[%emt 0:00:30]} 36. Qc1 {[%emt 0:01:27]} Qa2 {[%emt 0:00:18]} 37. Rf1 {[%emt 0:00:22]} Kxh8 38. exf4 Rb2 {[%emt 0:01:08]} 39. Rg1 {[%emt 0:01:19]} Bf5 {[%emt 0:00:06]} 40. Qc3+ {[%emt 0:00:00]} Kg8 {[%emt 0:00:00]} 41. Re3 Re2 42. Rxe2 {[%emt 0:01:31]} Qxe2 {[%emt 0:06:19]} 43. Re1 Qf2 {[%emt 0:04:05]} 44. Qe3 {[%emt 0:00:14]} 1-0

[Event "21st Sants Open 2019"]
[Site "Cotxeres de Sants"]
[Date "2019.09.01"]
[Round "10.15"]
[White "Romero Moreno, Felix"]
[Black "Carmona Huertas, Juan Antonio"]
[Result "1/2-1/2"]
[ECO "D45"]
[WhiteElo "1914"]
[BlackElo "1930"]
[Annotator "NA"]
[PlyCount "34"]
[EventDate "2019.08.22"]
[EventType "swiss"]
[EventCountry "ESP"]
[SourceTitle "playchess.com"]
[Source "ChessBase"]
[SourceQuality "1"]
[TimeControl "40/5400+30:1800+30"]

1. d4 {[%emt 0:00:00]} d5 {[%emt 0:00:00]} 2. c4 {[%emt 0:00:00]} c6 {[%emt 0:00:00]} 3. Nf3 {[%emt 0:00:07]} Nf6 {[%emt 0:00:00]} 4. Nc3 {[%emt 0:00:11]} e6 {[%emt 0:00:00]} 5. e3 {[%emt 0:00:09]} Nbd7 {[%emt 0:00:00]} 6. Qc2 {[%emt 0:00:08]} Bd6 {[%emt 0:00:00]} 7. b3 {[%emt 0:00:14]} O-O {[%emt 0:00:06]} 8. Bb2 {[%emt 0:00:18]} e5 {[%emt 0:01:22]} 9. h3 {[%emt 0:00:16]} Re8 {[%emt 0:01:02]} 10. O-O-O {[%emt 0:08:02]} Qa5 {[%emt 0:24:47]} 11. g4 {[%emt 0:03:37]} e4 {[%emt 0:25:37]} 12. Nd2 {[%emt 0:04:38]} Nb8 {[%emt 0:04:43]} 13. g5 {[%emt 0:05:58]} Nfd7 {[%emt 0:00:00]} 14. h4 {[%emt 0:03:41]} Nf8 {[%emt 0:00:17]} 15. Be2 {[%emt 0:03:16]} Bb4 {[%emt 0:13:12]} 16. h5 {[%emt 0:03:23]} dxc4 {[%emt 0:06:09]} 17. Nxc4 {[%emt 0:06:43]} Qxg5 {[%emt 0:06:16]} 1/2-1/2

[Event "21st Sants Open 2019"]
[Site "Cotxeres de Sants"]
[Date "2019.09.01"]
[Round "10.16"]
[White "Manukonda Arun"]
[Black "Morais Carreras, Javier"]
[Result "0-1"]
[ECO "D55"]
[WhiteElo "1899"]
[BlackElo "1939"]
[Annotator "NA"]
[PlyCount "76"]
[EventDate "2019.08.22"]
[EventType "swiss"]
[EventCountry "ESP"]
[SourceTitle "playchess.com"]
[Source "ChessBase"]
[SourceQuality "1"]
[TimeControl "40/5400+30:1800+30"]

1. d4 {[%emt 0:18:23]} d5 {[%emt 0:00:00]} 2. c4 {[%emt 0:00:01]} e6 {[%emt 0:00:08]} 3. Nc3 {[%emt 0:00:01]} Nf6 {[%emt 0:00:11]} 4. Bg5 {[%emt 0:00:01]} Be7 {[%emt 0:00:10]} 5. Nf3 {[%emt 0:00:02]} O-O {[%emt 0:00:12]} 6. e3 {[%emt 0:00:18]} c6 {[%emt 0:00:09]} 7. Bd3 {[%emt 0:00:25]} Nbd7 {[%emt 0:00:09]} 8. O-O {[%emt 0:00:13]} dxc4 {[%emt 0:00:08]} 9. Bxc4 {[%emt 0:00:02]} Nd5 {[%emt 0:00:12]} 10. Bxe7 {[%emt 0:00:09]} Qxe7 {[%emt 0:00:08]} 11. e4 {[%emt 0:00:29]} Nxc3 {[%emt 0:03:43]} 12. bxc3 {[%emt 0:00:02]} e5 {[%emt 0:02:11]} 13. Re1 {[%emt 0:01:28]} exd4 {[%emt 0:00:59]} 14. cxd4 {[%emt 0:00:09]} Nb6 {[%emt 0:00:45]} 15. Bb3 {[%emt 0:01:34]} Bg4 {[%emt 0:00:13]} 16. Qd3 {[%emt 0:01:35]} Rad8 {[%emt 0:00:35]} 17. Re3 {[%emt 0:10:14]} Bh5 {[%emt 0:07:50]} 18. Rae1 {[%emt 0:05:43]} Kh8 {[%emt 0:07:52]} 19. Qc3 {[%emt 0:12:22]} Qd7 {[%emt 0:12:06]} 20. Rd1 {[%emt 0:11:05]} Rfe8 {[%emt 0:01:43]} 21. Ne5 {[%emt 0:00:47]} Rxe5 {[%emt 0:00:33]} 22. Rdd3 {[%emt 0:05:01]} Re7 {[%emt 0:01:47]} 23. f4 {[%emt 0:00:20]} f5 {[%emt 0:02:15]} 24. d5 {[%emt 0:07:18]} cxd5 {[%emt 0:05:02]} 25. exd5 {[%emt 0:00:25]} Re4 {[%emt 0:02:40]} 26. Rh3 {[%emt 0:01:28]} Bg4 {[%emt 0:03:16]} 27. Rhg3 {[%emt 0:03:06]} Rc8 {[%emt 0:04:41]} 28. Qa1 {[%emt 0:02:26]} Rce8 {[%emt 0:03:05]} 29. Rxg4 {[%emt 0:00:10]} Re1+ {[%emt 0:00:48]} 30. Qxe1 {[%emt 0:00:01]} Rxe1+ {[%emt 0:00:23]} 31. Kf2 {[%emt 0:00:01]} Qe7 {[%emt 0:01:02]} 32. Bd1 {[%emt 0:02:06]} fxg4 {[%emt 0:01:06]} 33. d6 {[%emt 0:00:02]} Qe4 {[%emt 0:01:58]} 34. Bc2 {[%emt 0:02:46]} Re2+ {[%emt 0:00:27]} 35. Kg3 {[%emt 0:00:11]} Rxg2+ {[%emt 0:00:20]} 36. Kh4 {[%emt 0:00:04]} Rxh2+ {[%emt 0:00:18]} 37. Kxg4 {[%emt 0:00:15]} Rg2+ {[%emt 0:00:18]} 38. Kh3 {[%emt 0:00:40]} Rxc2 {[%emt 0:00:30]} 0-1

[Event "21st Sants Open 2019"]
[Site "Cotxeres de Sants"]
[Date "2019.09.01"]
[Round "10.17"]
[White "Martos Martin, Jose Angel"]
[Black "Planella Sanchez, Jordi"]
[Result "0-1"]
[ECO "B40"]
[WhiteElo "1790"]
[BlackElo "1919"]
[Annotator "NA"]
[PlyCount "74"]
[EventDate "2019.08.22"]
[EventType "swiss"]
[EventCountry "ESP"]
[SourceTitle "playchess.com"]
[Source "ChessBase"]
[SourceQuality "1"]
[TimeControl "40/5400+30:1800+30"]

1. e4 {[%emt 0:02:28]} c5 {[%emt 0:02:25]} 2. Nf3 {[%emt 0:00:37]} e6 {[%emt 0:01:06]} 3. d4 {[%emt 0:03:10]} cxd4 {[%emt 0:00:17]} 4. Nxd4 {[%emt 0:00:11]} Nf6 {[%emt 0:00:22]} 5. Bd3 {[%emt 0:06:14]} Be7 {[%emt 0:01:16]} 6. O-O {[%emt 0:02:20]} d6 {[%emt 0:00:40]} 7. c4 {[%emt 0:11:56]} O-O {[%emt 0:01:30]} 8. Nc3 {[%emt 0:00:21]} Nbd7 {[%emt 0:04:51]} 9. Be3 {[%emt 0:08:01]} Nc5 {[%emt 0:02:59]} 10. Rc1 {[%emt 0:04:22]} Nxd3 {[%emt 0:00:18]} 11. Qxd3 {[%emt 0:00:02]} e5 {[%emt 0:05:45]} 12. Nc2 {[%emt 0:04:51]} Be6 {[%emt 0:07:56]} 13. b3 {[%emt 0:11:50]} Ng4 {[%emt 0:04:22]} 14. Bd2 {[%emt 0:05:24]} f5 {[%emt 0:01:26]} 15. h3 {[%emt 0:01:34]} Nf6 {[%emt 0:01:24]} 16. exf5 {[%emt 0:04:10]} Bd7 {[%emt 0:02:32]} 17. Ne3 {[%emt 0:07:17]} Kh8 {[%emt 0:00:35]} 18. Ne4 {[%emt 0:06:16]} Nxe4 {[%emt 0:02:34]} 19. Qxe4 {[%emt 0:00:03]} Bc6 {[%emt 0:00:11]} 20. Nd5 {[%emt 0:01:59]} Bg5 {[%emt 0:05:33]} 21. f4 {[%emt 0:03:20]} Bh6 {[%emt 0:11:59]} 22. Rcd1 {[%emt 0:01:30]} Qh4 {[%emt 0:01:40]} 23. Be1 {[%emt 0:09:51]} Qh5 {[%emt 0:00:41]} 24. Qc2 {[%emt 0:00:41]} Rae8 {[%emt 0:10:03]} 25. Bb4 {[%emt 0:02:36]} exf4 {[%emt 0:02:23]} 26. Rde1 {[%emt 0:00:50]} Bxd5 {[%emt 0:09:19]} 27. cxd5 {[%emt 0:00:10]} Rc8 {[%emt 0:00:12]} 28. Qe2 {[%emt 0:01:10]} Qxf5 {[%emt 0:02:56]} 29. Bxd6 {[%emt 0:00:37]} Rfd8 {[%emt 0:00:44]} 30. Qe6 {[%emt 0:00:20]} Qh5 {[%emt 0:02:10]} 31. Rd1 {[%emt 0:00:44]} Rc2 {[%emt 0:07:00]} 32. Rc1 {[%emt 0:00:07]} Re2 {[%emt 0:00:42]} 33. Qg4 {[%emt 0:00:46]} Qxg4 {[%emt 0:03:30]} 34. hxg4 {[%emt 0:00:01]} f3 {[%emt 0:00:13]} 35. Rc7 {[%emt 0:00:32]} f2+ {[%emt 0:01:36]} 36. Kh2 {[%emt 0:00:56]} g6 {[%emt 0:00:55]} 37. Bb4 {[%emt 0:00:38]} Bf4+ {[%emt 0:00:15] Bd6 Bh6 Bg3 Rxd5 Rxb7 Rdd2} 0-1

[Event "21st Sants Open 2019"]
[Site "Cotxeres de Sants"]
[Date "2019.09.01"]
[Round "10.18"]
[White "Paton Alvarez, Ivan"]
[Black "Ferre Navarro, Joan"]
[Result "1-0"]
[ECO "B06"]
[WhiteElo "1544"]
[BlackElo "1533"]
[Annotator "NA"]
[PlyCount "67"]
[EventDate "2019.08.22"]
[EventType "swiss"]
[EventCountry "ESP"]
[SourceTitle "playchess.com"]
[Source "ChessBase"]
[SourceQuality "1"]
[TimeControl "40/5400+30:1800+30"]

1. e4 {[%emt 0:00:00]} g6 {[%emt 0:00:00]} 2. d4 {[%emt 0:00:00]} Bg7 {[%emt 0:00:00]} 3. Nc3 {[%emt 0:00:00]} a6 {[%emt 0:00:00]} 4. a4 {[%emt 0:00:00]} d6 {[%emt 0:00:06]} 5. Nf3 {[%emt 0:00:07]} Nd7 {[%emt 0:00:59]} 6. Be2 {[%emt 0:00:09]} c5 {[%emt 0:00:09]} 7. Be3 {[%emt 0:08:01]} Qb6 {[%emt 0:03:02]} 8. Rb1 {[%emt 0:06:02]} e6 {[%emt 0:02:44]} 9. O-O {[%emt 0:02:39]} Ne7 {[%emt 0:00:32]} 10. Qd2 {[%emt 0:01:48]} O-O {[%emt 0:04:17]} 11. Bh6 {[%emt 0:11:32]} cxd4 {[%emt 0:04:44]} 12. Bxg7 {[%emt 0:00:57]} Kxg7 {[%emt 0:00:09]} 13. Qxd4+ {[%emt 0:00:19]} Qxd4 {[%emt 0:02:55]} 14. Nxd4 {[%emt 0:00:07]} Nc6 {[%emt 0:00:37]} 15. Rfd1 {[%emt 0:00:35]} Nb4 {[%emt 0:04:46]} 16. Nf3 {[%emt 0:08:31]} Nxc2 {[%emt 0:02:02]} 17. b4 {[%emt 0:01:12]} e5 {[%emt 0:00:53]} 18. Rd2 {[%emt 0:01:16]} Nd4 {[%emt 0:00:55]} 19. Nxd4 {[%emt 0:00:09]} exd4 {[%emt 0:00:11]} 20. Rxd4 {[%emt 0:00:05]} Nf6 {[%emt 0:02:45]} 21. Rxd6 {[%emt 0:00:45]} Re8 {[%emt 0:00:49]} 22. Rxf6 {[%emt 0:02:38]} Kxf6 {[%emt 0:03:52]} 23. Nd5+ {[%emt 0:00:09]} Kg7 {[%emt 0:00:52]} 24. Nc7 {[%emt 0:00:04]} Bd7 {[%emt 0:00:11]} 25. Nxa8 {[%emt 0:00:18]} Rxa8 {[%emt 0:00:06]} 26. a5 {[%emt 0:00:11]} Bc6 {[%emt 0:00:50]} 27. f3 {[%emt 0:00:21]} Rd8 {[%emt 0:00:11]} 28. Rd1 {[%emt 0:00:18]} Rxd1+ {[%emt 0:01:14]} 29. Bxd1 {[%emt 0:00:05]} Kf6 {[%emt 0:00:08]} 30. Kf2 {[%emt 0:00:02]} Ke5 {[%emt 0:00:55]} 31. Ke3 {[%emt 0:00:03]} f5 {[%emt 0:01:12]} 32. f4+ {[%emt 0:00:14]} Kf6 {[%emt 0:01:09]} 33. e5+ {[%emt 0:00:04]} Ke7 {[%emt 0:00:51]} 34. Bf3 {[%emt 0:00:12]} 1-0

[Event "21st Sants Open 2019"]
[Site "Cotxeres de Sants"]
[Date "2019.09.01"]
[Round "10.20"]
[White "Garcia Martinez, Hector"]
[Black "Lambert Pont, Michael"]
[Result "1/2-1/2"]
[ECO "C36"]
[WhiteElo "1547"]
[BlackElo "1577"]
[Annotator "NA"]
[PlyCount "100"]
[EventDate "2019.08.22"]
[EventType "swiss"]
[EventCountry "ESP"]
[SourceTitle "playchess.com"]
[Source "ChessBase"]
[SourceQuality "1"]
[TimeControl "40/5400+30:1800+30"]

1. e4 e5 {[%emt 0:13:48]} 2. f4 {[%emt 0:02:09]} d5 {[%emt 0:00:19]} 3. exd5 {[%emt 0:00:21]} exf4 {[%emt 0:00:13]} 4. Nf3 {[%emt 0:02:50]} Nf6 {[%emt 0:23:30]} 5. Bc4 {[%emt 0:01:12]} Bd6 {[%emt 0:02:43]} 6. O-O {[%emt 0:01:03]} O-O {[%emt 0:02:05]} 7. Nc3 {[%emt 0:09:06]} Bg4 {[%emt 0:04:40]} 8. Qe1 {[%emt 0:21:58]} c6 {[%emt 0:10:39]} 9. d4 {[%emt 0:12:24]} Bc7 {[%emt 0:11:42]} 10. Qh4 Bxf3 {[%emt 0:00:52]} 11. Rxf3 {[%emt 0:00:43]} Nxd5 12. Qxd8 Rxd8 {[%emt 0:00:42]} 13. Nxd5 {[%emt 0:00:16]} cxd5 {[%emt 0:00:11]} 14. Bd3 {[%emt 0:00:00]} g5 {[%emt 0:02:46]} 15. Rh3 {[%emt 0:00:28]} Nc6 {[%emt 0:10:57]} 16. c3 {[%emt 0:04:50]} Rd6 {[%emt 0:01:46]} 17. Rxh7 {[%emt 0:01:00]} Ne7 {[%emt 0:01:25]} 18. Rh5 {[%emt 0:03:17]} f6 {[%emt 0:01:25]} 19. Bd2 {[%emt 0:03:39]} Re6 {[%emt 0:00:54]} 20. Re1 {[%emt 0:00:57]} Rxe1+ {[%emt 0:00:30]} 21. Bxe1 {[%emt 0:04:08]} Re8 {[%emt 0:03:52]} 22. Bb5 {[%emt 0:00:51]} Nc6 {[%emt 0:00:27]} 23. Kf2 {[%emt 0:00:16]} a6 {[%emt 0:00:48]} 24. Bd3 {[%emt 0:04:01]} Re3 {[%emt 0:03:03]} 25. Bf5 {[%emt 0:00:20]} Ne7 {[%emt 0:00:55]} 26. Bg4 {[%emt 0:01:22]} Ng6 27. Bc8 {[%emt 0:00:10]} Re8 {[%emt 0:00:59]} 28. Bxb7 {[%emt 0:00:05]} Rb8 {[%emt 0:00:06]} 29. Bxd5+ {[%emt 0:01:24]} Kg7 {[%emt 0:01:08]} 30. b3 {[%emt 0:01:00]} Re8 {[%emt 0:01:09]} 31. Rh3 {[%emt 0:00:22]} Ne7 {[%emt 0:01:04]} 32. Bc4 {[%emt 0:01:08]} Nf5 {[%emt 0:00:31]} 33. Bxa6 {[%emt 0:00:24]} Ra8 {[%emt 0:00:26]} 34. Bd3 {[%emt 0:04:08]} Rxa2+ {[%emt 0:00:49]} 35. Kf3 {[%emt 0:08:27]} Nh6 {[%emt 0:00:19]} 36. Rh5 {[%emt 0:01:34]} Ra3 {[%emt 0:00:29]} 37. b4 {[%emt 0:04:14]} Ra2 {[%emt 0:01:07]} 38. g4 {[%emt 0:01:06]} Ra1 {[%emt 0:00:00]} 39. Kf2 {[%emt 0:00:00]} Nxg4+ {[%emt 0:00:00]} 40. Kf3 {[%emt 0:00:00]} Nh6 {[%emt 0:00:00]} 41. Bd2 {[%emt 0:12:27]} Bd8 {[%emt 0:04:17]} 42. h4 {[%emt 0:00:54]} Rh1 {[%emt 0:00:11]} 43. Kg2 {[%emt 0:06:36]} Rd1 {[%emt 0:00:26]} 44. Bxf4 {[%emt 0:00:28]} gxf4 {[%emt 0:00:57]} 45. Be4 {[%emt 0:01:58]} Be7 {[%emt 0:00:53]} 46. Ra5 {[%emt 0:03:21]} Re1 {[%emt 0:02:49]} 47. Kf3 {[%emt 0:03:08]} Bd6 {[%emt 0:02:17]} 48. Ra7+ {[%emt 0:02:07]} Kf8 {[%emt 0:04:01]} 49. Ra6 {[%emt 0:00:50]} Re3+ {[%emt 0:00:33]} 50. Kf2 Ke7 1/2-1/2